[Event "*** Titled Tuesday Blitz"]
[Site "Chess.com"]
[Date "2018.08.07"]
[Round "1"]
[White "Slovak_fighter2000"]
[Black "Parhamov"]
[Result "1-0"]
[WhiteElo "2396"]
[BlackElo "2751"]
[TimeControl "180+2"]
[EndTime "13:08:43 PDT"]
[Termination "Slovak_fighter2000 won by resignation"]

1. d4 {[%clk 0:03:01.9]} 1... d5 {[%clk 0:02:47.2]} 2. Nf3 {[%clk 0:03:02.9]}
2... a6 {[%clk 0:02:47.5]} 3. Bf4 {[%clk 0:03:03.8]} 3... Bf5 {[%clk 0:02:46.9]}
4. e3 {[%clk 0:03:05]} 4... e6 {[%clk 0:02:48.1]} 5. c4 {[%clk 0:03:04.9]} 5...
Nf6 {[%clk 0:02:46.5]} 6. Nc3 {[%clk 0:03:05.4]} 6... c6 {[%clk 0:02:42.5]} 7.
Bd3 {[%clk 0:03:05.3]} 7... Bxd3 {[%clk 0:02:42.8]} 8. Qxd3 {[%clk 0:03:07.2]}
8... Nbd7 {[%clk 0:02:44.2]} 9. O-O {[%clk 0:03:07.7]} 9... Bb4 {[%clk
0:02:45.3]} 10. h3 {[%clk 0:03:06.5]} 10... O-O {[%clk 0:02:37.7]} 11. c5 {[%clk
0:03:04.9]} 11... b6 {[%clk 0:02:35.2]} 12. cxb6 {[%clk 0:03:03.2]} 12... Qxb6
{[%clk 0:02:35]} 13. a3 {[%clk 0:03:03.6]} 13... Bxc3 {[%clk 0:02:34.5]} 14.
Qxc3 {[%clk 0:03:03.6]} 14... a5 {[%clk 0:02:33.7]} 15. Rfc1 {[%clk 0:02:59.5]}
15... Rfc8 {[%clk 0:02:34.7]} 16. Nd2 {[%clk 0:02:52.5]} 16... c5 {[%clk
0:02:32]} 17. b3 {[%clk 0:02:36.6]} 17... h6 {[%clk 0:02:20]} 18. Qd3 {[%clk
0:02:27.3]} 18... a4 {[%clk 0:02:07.7]} 19. Rab1 {[%clk 0:02:05.2]} 19... axb3
{[%clk 0:01:56.3]} 20. Rxb3 {[%clk 0:01:57.3]} 20... Qa7 {[%clk 0:01:54.9]} 21.
dxc5 {[%clk 0:01:37.9]} 21... Nxc5 {[%clk 0:01:54.5]} 22. Qd4 {[%clk 0:01:38.9]}
22... Nfd7 {[%clk 0:01:07.1]} 23. Rbc3 {[%clk 0:01:36]} 23... Rc6 {[%clk
0:01:07.9]} 24. Nb3 {[%clk 0:01:33.4]} 24... Nxb3 {[%clk 0:01:07.7]} 25. Qxa7
{[%clk 0:01:34]} 25... Rxa7 {[%clk 0:01:08.7]} 26. Rxc6 {[%clk 0:01:34.3]} 26...
Nxc1 {[%clk 0:01:09.4]} 27. Rxc1 {[%clk 0:01:35.6]} 27... Rxa3 {[%clk
0:01:10.5]} 28. Rc8+ {[%clk 0:01:36.3]} 28... Kh7 {[%clk 0:01:10.4]} 29. Rc7
{[%clk 0:01:37.3]} 29... Ra1+ {[%clk 0:00:49]} 30. Kh2 {[%clk 0:01:37.9]} 30...
Nf6 {[%clk 0:00:50.1]} 31. Rxf7 {[%clk 0:01:37.2]} 31... Kg6 {[%clk 0:00:44.8]}
32. Re7 {[%clk 0:01:34.3]} 32... Kf5 {[%clk 0:00:32]} 33. Rxg7 {[%clk
0:01:32.3]} 33... e5 {[%clk 0:00:32.8]} 34. Bxh6 {[%clk 0:01:32.1]} 34... d4
{[%clk 0:00:34.1]} 35. exd4 {[%clk 0:01:32.5]} 35... exd4 {[%clk 0:00:35]} 36.
g4+ {[%clk 0:01:27.2]} 36... Ke6 {[%clk 0:00:29.4]} 37. Rb7 {[%clk 0:01:21.8]}
37... d3 {[%clk 0:00:29.4]} 38. Rb3 {[%clk 0:01:18.4]} 38... Rd1 {[%clk
0:00:24.9]} 39. Kg2 {[%clk 0:01:19.5]} 39... Ne4 {[%clk 0:00:21.4]} 40. Be3
{[%clk 0:01:18.3]} 40... Kd5 {[%clk 0:00:19.4]} 41. g5 {[%clk 0:01:10.5]} 41...
Kc4 {[%clk 0:00:20.6]} 42. Rb8 {[%clk 0:01:10]} 42... d2 {[%clk 0:00:18.8]} 43.
Rd8 {[%clk 0:01:09.4]} 43... Kc3 {[%clk 0:00:19.8]} 44. g6 {[%clk 0:01:05.8]}
44... Kc2 {[%clk 0:00:18.3]} 45. g7 {[%clk 0:01:02.5]} 45... Nf6 {[%clk
0:00:19.6]} 46. Rxd2+ {[%clk 0:01:01.7]} 46... Rxd2 {[%clk 0:00:20.8]} 47. Bxd2
{[%clk 0:01:03.6]} 47... Kxd2 {[%clk 0:00:22.2]} 48. Kf3 {[%clk 0:01:04.8]}
48... Ke1 {[%clk 0:00:23.4]} 49. h4 {[%clk 0:01:05.1]} 49... Kf1 {[%clk
0:00:24.3]} 50. h5 {[%clk 0:01:04]} 50... Kg1 {[%clk 0:00:19.6]} 51. h6 {[%clk
0:01:03.8]} 51... Kh2 {[%clk 0:00:20.7]} 52. h7 {[%clk 0:01:03.9]} 1-0

[Event "*** Titled Tuesday Blitz"]
[Site "Chess.com"]
[Date "2018.08.07"]
[Round "1"]
[White "Haykos"]
[Black "51616516516"]
[Result "1-0"]
[WhiteElo "2513"]
[BlackElo "2192"]
[TimeControl "180+2"]
[EndTime "13:08:45 PDT"]
[Termination "Haykos won on time"]

1. e4 {[%clk 0:03:01.9]} 1... c5 {[%clk 0:03:00]} 2. Nf3 {[%clk 0:02:55.5]} 2...
g6 {[%clk 0:03:00.5]} 3. d4 {[%clk 0:02:54.7]} 3... cxd4 {[%clk 0:03:01.6]} 4.
Nxd4 {[%clk 0:02:54.8]} 4... Nc6 {[%clk 0:03:02.8]} 5. c4 {[%clk 0:02:55.3]}
5... Nf6 {[%clk 0:03:03.3]} 6. Nc3 {[%clk 0:02:56.2]} 6... d6 {[%clk 0:03:04.4]}
7. Be2 {[%clk 0:02:47.4]} 7... Bg7 {[%clk 0:03:05.1]} 8. O-O {[%clk 0:02:48.4]}
8... O-O {[%clk 0:03:05.3]} 9. Be3 {[%clk 0:02:48.8]} 9... Bd7 {[%clk
0:03:03.8]} 10. Rc1 {[%clk 0:02:48.9]} 10... Nxd4 {[%clk 0:03:04.4]} 11. Bxd4
{[%clk 0:02:49.1]} 11... Bc6 {[%clk 0:03:06.3]} 12. Qd3 {[%clk 0:02:34.5]} 12...
a5 {[%clk 0:03:03.9]} 13. b3 {[%clk 0:02:31.4]} 13... Nd7 {[%clk 0:03:04.4]} 14.
Bxg7 {[%clk 0:02:31.1]} 14... Kxg7 {[%clk 0:03:05.4]} 15. f4 {[%clk 0:02:30.9]}
15... Qb6+ {[%clk 0:02:28.7]} 16. Kh1 {[%clk 0:02:27.2]} 16... Nc5 {[%clk
0:02:08.2]} 17. Qe3 {[%clk 0:02:08.1]} 17... Na4 {[%clk 0:02:04]} 18. Qd2 {[%clk
0:01:55.3]} 18... Nxc3 {[%clk 0:02:02.3]} 19. Qxc3+ {[%clk 0:01:57.2]} 19... Kg8
{[%clk 0:01:59.6]} 20. Bd3 {[%clk 0:01:54.8]} 20... Qc5 {[%clk 0:01:58.6]} 21.
Rce1 {[%clk 0:01:53.1]} 21... b5 {[%clk 0:01:58.2]} 22. e5 {[%clk 0:01:49.5]}
22... d5 {[%clk 0:01:48.5]} 23. f5 {[%clk 0:01:43.9]} 23... dxc4 {[%clk
0:01:48.1]} 24. bxc4 {[%clk 0:01:44.3]} 24... b4 {[%clk 0:01:40.4]} 25. Qc1
{[%clk 0:01:45]} 25... Qd4 {[%clk 0:01:20.9]} 26. Qh6 {[%clk 0:01:32.6]} 26...
Qg4 {[%clk 0:00:59]} 27. Be4 {[%clk 0:00:43.3]} 27... Bxe4 {[%clk 0:00:45]} 28.
Rxe4 {[%clk 0:00:45.2]} 28... Qh5 {[%clk 0:00:39.5]} 29. Qxh5 {[%clk 0:00:42.2]}
29... gxh5 {[%clk 0:00:40]} 30. c5 {[%clk 0:00:43.6]} 30... Rac8 {[%clk
0:00:38]} 31. Rc1 {[%clk 0:00:44.6]} 31... Rfd8 {[%clk 0:00:37.6]} 32. c6 {[%clk
0:00:45.1]} 32... Rd2 {[%clk 0:00:33.2]} 33. Kg1 {[%clk 0:00:44.2]} 33... Kg7
{[%clk 0:00:21.6]} 34. c7 {[%clk 0:00:34.7]} 34... Rd7 {[%clk 0:00:21.9]} 35.
Rec4 {[%clk 0:00:34.8]} 35... a4 {[%clk 0:00:11.7]} 36. e6 {[%clk 0:00:34.5]}
36... fxe6 {[%clk 0:00:11.1]} 37. fxe6 {[%clk 0:00:36.4]} 37... Rd6 {[%clk
0:00:11]} 38. Rxb4 {[%clk 0:00:37.6]} 38... Rxe6 {[%clk 0:00:06.9]} 39. Rb8
{[%clk 0:00:38.5]} 1-0

[Event "*** Titled Tuesday Blitz"]
[Site "Chess.com"]
[Date "2018.08.07"]
[Round "1"]
[White "AquivaRubinstein"]
[Black "dretch"]
[Result "1-0"]
[WhiteElo "2398"]
[BlackElo "2751"]
[TimeControl "180+2"]
[EndTime "13:08:46 PDT"]
[Termination "AquivaRubinstein won by resignation"]

1. d4 {[%clk 0:02:44.6]} 1... d5 {[%clk 0:03:00.5]} 2. c4 {[%clk 0:02:44]} 2...
c6 {[%clk 0:03:01.8]} 3. Nf3 {[%clk 0:02:44.5]} 3... Nf6 {[%clk 0:03:02.3]} 4.
Nc3 {[%clk 0:02:45.5]} 4... dxc4 {[%clk 0:03:03.2]} 5. a4 {[%clk 0:02:45.3]}
5... Bf5 {[%clk 0:03:03.6]} 6. Ne5 {[%clk 0:02:45.1]} 6... Nbd7 {[%clk
0:03:02.8]} 7. Nxc4 {[%clk 0:02:43.9]} 7... Nb6 {[%clk 0:03:04.1]} 8. Ne5 {[%clk
0:02:45]} 8... a5 {[%clk 0:03:04.1]} 9. f3 {[%clk 0:02:44.5]} 9... Nfd7 {[%clk
0:03:02.3]} 10. e4 {[%clk 0:02:28.7]} 10... Nxe5 {[%clk 0:03:00.9]} 11. exf5
{[%clk 0:02:27.2]} 11... Ned7 {[%clk 0:03:00.3]} 12. Bd3 {[%clk 0:02:07.9]}
12... g6 {[%clk 0:02:58.6]} 13. O-O {[%clk 0:02:07.5]} 13... Bg7 {[%clk
0:02:59.1]} 14. Be3 {[%clk 0:01:46.3]} 14... O-O {[%clk 0:02:50.7]} 15. Kh1
{[%clk 0:01:42.7]} 15... Nf6 {[%clk 0:02:30.7]} 16. Qe2 {[%clk 0:01:33.2]} 16...
Nfd5 {[%clk 0:02:24.1]} 17. Bf2 {[%clk 0:00:55.2]} 17... Nf4 {[%clk 0:02:15.9]}
18. Qe4 {[%clk 0:00:53.8]} 18... Nxd3 {[%clk 0:02:15.6]} 19. Qxd3 {[%clk
0:00:55.4]} 19... Nd5 {[%clk 0:02:13.9]} 20. Rae1 {[%clk 0:00:54.1]} 20... Re8
{[%clk 0:02:11.9]} 21. Nxd5 {[%clk 0:00:45.7]} 21... Qxd5 {[%clk 0:02:10.5]} 22.
fxg6 {[%clk 0:00:47.2]} 22... hxg6 {[%clk 0:02:11.9]} 23. Re4 {[%clk 0:00:38.4]}
23... e5 {[%clk 0:01:59.2]} 24. Rfe1 {[%clk 0:00:37.6]} 24... c5 {[%clk
0:01:52.8]} 25. Qb5 {[%clk 0:00:34.6]} 25... f5 {[%clk 0:01:30.2]} 26. R4e2
{[%clk 0:00:30.5]} 26... e4 {[%clk 0:01:17.3]} 27. fxe4 {[%clk 0:00:31.1]} 27...
fxe4 {[%clk 0:01:18]} 28. dxc5 {[%clk 0:00:31.3]} 28... Re7 {[%clk 0:00:41.3]}
29. Be3 {[%clk 0:00:23.3]} 29... Be5 {[%clk 0:00:26.9]} 30. h3 {[%clk
0:00:21.6]} 30... Rf8 {[%clk 0:00:21.2]} 31. Rd2 {[%clk 0:00:22.3]} 31... Qe6
{[%clk 0:00:21.1]} 32. Qb6 {[%clk 0:00:22.4]} 32... Qf5 {[%clk 0:00:21.1]} 33.
Rf2 {[%clk 0:00:22.6]} 33... Qd7 {[%clk 0:00:17.8]} 34. Qxg6+ {[%clk 0:00:20]}
34... Rg7 {[%clk 0:00:17.1]} 35. Rxf8+ {[%clk 0:00:21.4]} 35... Kxf8 {[%clk
0:00:18.6]} 36. Bh6 {[%clk 0:00:21.3]} 36... e3 {[%clk 0:00:15.9]} 37. Bxg7+
{[%clk 0:00:20]} 37... Bxg7 {[%clk 0:00:15.8]} 38. Rf1+ {[%clk 0:00:21.2]} 38...
Kg8 {[%clk 0:00:16.8]} 39. Qe4 {[%clk 0:00:22]} 39... Bh6 {[%clk 0:00:15.1]} 40.
Qg6+ {[%clk 0:00:21.3]} 40... Bg7 {[%clk 0:00:16]} 41. Qg3 {[%clk 0:00:20.1]}
41... e2 {[%clk 0:00:15.8]} 42. Re1 {[%clk 0:00:21.1]} 42... Qd2 {[%clk
0:00:15.6]} 43. Qf2 {[%clk 0:00:21.6]} 43... Qxb2 {[%clk 0:00:15.9]} 44. Qxe2
{[%clk 0:00:22.4]} 44... Qb4 {[%clk 0:00:16.3]} 45. Qe6+ {[%clk 0:00:23.2]}
45... Kh8 {[%clk 0:00:17]} 46. Qe8+ {[%clk 0:00:22.5]} 46... Kh7 {[%clk
0:00:17.9]} 47. Qh5+ {[%clk 0:00:23.6]} 47... Kg8 {[%clk 0:00:19]} 48. Re8+
{[%clk 0:00:24.5]} 1-0

[Event "*** Titled Tuesday Blitz"]
[Site "Chess.com"]
[Date "2018.08.07"]
[Round "1"]
[White "ftorodent"]
[Black "Stormeman100100"]
[Result "1-0"]
[WhiteElo "2485"]
[BlackElo "2110"]
[TimeControl "180+2"]
[EndTime "13:08:52 PDT"]
[Termination "ftorodent won on time"]

1. d4 {[%clk 0:03:00.7]} 1... Nf6 {[%clk 0:03:00]} 2. c4 {[%clk 0:03:00.9]} 2...
e6 {[%clk 0:03:00.6]} 3. Nf3 {[%clk 0:03:00.5]} 3... d5 {[%clk 0:03:01.1]} 4. e3
{[%clk 0:02:59.9]} 4... c5 {[%clk 0:02:46.4]} 5. cxd5 {[%clk 0:02:59.3]} 5...
exd5 {[%clk 0:02:46.4]} 6. a3 {[%clk 0:02:59]} 6... Nc6 {[%clk 0:02:47]} 7. dxc5
{[%clk 0:02:59.1]} 7... Bxc5 {[%clk 0:02:47.1]} 8. b4 {[%clk 0:03:00.1]} 8...
Bb6 {[%clk 0:02:44.1]} 9. Bb2 {[%clk 0:03:00.9]} 9... O-O {[%clk 0:02:42.9]} 10.
Be2 {[%clk 0:03:00.4]} 10... Bg4 {[%clk 0:02:42.3]} 11. O-O {[%clk 0:03:00.1]}
11... Re8 {[%clk 0:02:42.2]} 12. Nbd2 {[%clk 0:02:58.9]} 12... d4 {[%clk
0:02:19.1]} 13. exd4 {[%clk 0:02:40.9]} 13... Nxd4 {[%clk 0:02:09]} 14. Bxd4
{[%clk 0:02:27.6]} 14... Bxd4 {[%clk 0:02:07.7]} 15. Nxd4 {[%clk 0:02:26]} 15...
Qxd4 {[%clk 0:02:06.1]} 16. Bxg4 {[%clk 0:02:26.6]} 16... Nxg4 {[%clk
0:02:00.9]} 17. Nf3 {[%clk 0:02:27.1]} 17... Qxd1 {[%clk 0:01:57.9]} 18. Rfxd1
{[%clk 0:02:27.1]} 18... Rad8 {[%clk 0:01:58.8]} 19. Rac1 {[%clk 0:02:23.8]}
19... g6 {[%clk 0:01:52.4]} 20. h3 {[%clk 0:02:19.6]} 20... Ne5 {[%clk
0:01:35.1]} 21. Rxd8 {[%clk 0:01:34]} 21... Nxf3+ {[%clk 0:01:35.3]} 22. gxf3
{[%clk 0:01:34.7]} 22... Rxd8 {[%clk 0:01:37]} 23. Rc7 {[%clk 0:01:35.5]} 23...
Rd3 {[%clk 0:01:24.6]} 24. a4 {[%clk 0:01:35.4]} 24... Rb3 {[%clk 0:00:30.1]}
25. Rxb7 {[%clk 0:01:33.8]} 25... a5 {[%clk 0:00:31.1]} 26. b5 {[%clk
0:00:50.5]} 26... Rb4 {[%clk 0:00:31.3]} 27. Ra7 {[%clk 0:00:39.1]} 27... Rxa4
{[%clk 0:00:31.8]} 28. Kf1 {[%clk 0:00:39]} 28... Kg7 {[%clk 0:00:20]} 29. Ke2
{[%clk 0:00:38.7]} 29... Ra2+ {[%clk 0:00:19.9]} 30. Ke3 {[%clk 0:00:33.7]}
30... a4 {[%clk 0:00:21]} 31. Kd4 {[%clk 0:00:34.4]} 31... Rxf2 {[%clk
0:00:18.6]} 32. Rxa4 {[%clk 0:00:34.3]} 32... Rxf3 {[%clk 0:00:19.1]} 33. Rb4
{[%clk 0:00:29.4]} 33... Rxh3 {[%clk 0:00:08.8]} 34. b6 {[%clk 0:00:30.1]} 34...
Rh1 {[%clk 0:00:09.8]} 35. b7 {[%clk 0:00:29.8]} 35... Rd1+ {[%clk 0:00:11.3]}
36. Ke3 {[%clk 0:00:29.5]} 36... Rd8 {[%clk 0:00:12.4]} 37. b8=Q {[%clk
0:00:29.8]} 37... Rxb8 {[%clk 0:00:13.9]} 38. Rxb8 {[%clk 0:00:30.1]} 38... h5
{[%clk 0:00:13]} 39. Kf4 {[%clk 0:00:29.4]} 39... f6 {[%clk 0:00:12.3]} 40. Rb7+
{[%clk 0:00:21.2]} 40... Kh6 {[%clk 0:00:13.2]} 41. Rf7 {[%clk 0:00:22.1]} 41...
g5+ {[%clk 0:00:07.5]} 42. Kf5 {[%clk 0:00:23]} 42... h4 {[%clk 0:00:06.8]} 43.
Rxf6+ {[%clk 0:00:24.1]} 1-0

[Event "*** Titled Tuesday Blitz"]
[Site "Chess.com"]
[Date "2018.08.07"]
[Round "1"]
[White "W_Amadeus"]
[Black "GMCanty"]
[Result "1-0"]
[WhiteElo "2593"]
[BlackElo "2239"]
[TimeControl "180+2"]
[EndTime "13:08:58 PDT"]
[Termination "W_Amadeus won by resignation"]

1. d4 {[%clk 0:03:01.7]} 1... Nf6 {[%clk 0:03:00.4]} 2. c4 {[%clk 0:03:01.9]}
2... e6 {[%clk 0:03:01.3]} 3. Nf3 {[%clk 0:03:02.2]} 3... Bb4+ {[%clk
0:03:01.9]} 4. Bd2 {[%clk 0:03:02.7]} 4... Qe7 {[%clk 0:03:03.2]} 5. g3 {[%clk
0:03:03.9]} 5... Nc6 {[%clk 0:03:02.8]} 6. Nc3 {[%clk 0:03:04.4]} 6... Bxc3
{[%clk 0:03:03.6]} 7. Bxc3 {[%clk 0:03:06.3]} 7... Ne4 {[%clk 0:03:04.6]} 8. Rc1
{[%clk 0:03:07.9]} 8... O-O {[%clk 0:03:03.1]} 9. Bg2 {[%clk 0:03:07.7]} 9...
Nxc3 {[%clk 0:03:04.5]} 10. Rxc3 {[%clk 0:03:09.1]} 10... d6 {[%clk 0:03:06.4]}
11. O-O {[%clk 0:03:09.3]} 11... a5 {[%clk 0:03:04.9]} 12. d5 {[%clk 0:03:06.2]}
12... Nb8 {[%clk 0:03:05.3]} 13. dxe6 {[%clk 0:03:04.5]} 13... fxe6 {[%clk
0:03:05.3]} 14. Nd4 {[%clk 0:03:03.5]} 14... c6 {[%clk 0:03:06]} 15. Qd2 {[%clk
0:02:59]} 15... e5 {[%clk 0:03:06.6]} 16. Nc2 {[%clk 0:02:59.6]} 16... Na6
{[%clk 0:03:03.2]} 17. Rd1 {[%clk 0:02:44.8]} 17... Rd8 {[%clk 0:02:49.9]} 18.
Rd3 {[%clk 0:01:56.1]} 18... Be6 {[%clk 0:02:49.3]} 19. b3 {[%clk 0:01:48.1]}
19... Rd7 {[%clk 0:01:54.5]} 20. Rxd6 {[%clk 0:01:11.8]} 20... Rad8 {[%clk
0:01:55.8]} 21. Rxd7 {[%clk 0:01:11.4]} 21... Rxd7 {[%clk 0:01:57.7]} 22. Qe1
{[%clk 0:01:12.1]} 22... Qd8 {[%clk 0:01:49.4]} 23. Rxd7 {[%clk 0:01:02.9]}
23... Qxd7 {[%clk 0:01:51.3]} 24. h4 {[%clk 0:00:56.3]} 24... a4 {[%clk
0:01:45.9]} 25. Ne3 {[%clk 0:00:49.5]} 25... axb3 {[%clk 0:01:42.8]} 26. axb3
{[%clk 0:00:51.4]} 26... Nc5 {[%clk 0:01:42.6]} 27. Qa5 {[%clk 0:00:32.5]} 27...
Nxb3 {[%clk 0:01:38.4]} 28. Qxe5 {[%clk 0:00:31.8]} 28... Nd4 {[%clk 0:01:37]}
29. Bf1 {[%clk 0:00:23.2]} 29... b5 {[%clk 0:01:37.7]} 30. cxb5 {[%clk
0:00:22.4]} 30... cxb5 {[%clk 0:01:39.6]} 31. Qc5 {[%clk 0:00:22.5]} 31... Nb3
{[%clk 0:01:30.1]} 32. Qb6 {[%clk 0:00:21.8]} 32... Nd2 {[%clk 0:01:22.6]} 33.
Bg2 {[%clk 0:00:20.3]} 33... g6 {[%clk 0:01:11.1]} 34. Bc6 {[%clk 0:00:20.2]}
34... Qd6 {[%clk 0:01:02]} 35. Qxb5 {[%clk 0:00:20.5]} 35... Kg7 {[%clk
0:00:51.9]} 36. Bd5 {[%clk 0:00:21.2]} 36... Bxd5 {[%clk 0:00:49.3]} 37. Qb2+
{[%clk 0:00:21.5]} 37... Qf6 {[%clk 0:00:46.6]} 38. Qxf6+ {[%clk 0:00:21.4]}
38... Kxf6 {[%clk 0:00:48.4]} 39. Nxd5+ {[%clk 0:00:22.8]} 39... Ke5 {[%clk
0:00:48.3]} 40. Nf4 {[%clk 0:00:23.4]} 40... Ne4 {[%clk 0:00:47.1]} 41. Kg2
{[%clk 0:00:23.1]} 41... Nc3 {[%clk 0:00:47.9]} 42. f3 {[%clk 0:00:22.6]} 42...
Kd4 {[%clk 0:00:43.3]} 43. e4 {[%clk 0:00:20.7]} 43... Ke5 {[%clk 0:00:31.4]}
44. Kf2 {[%clk 0:00:19.7]} 44... Nd1+ {[%clk 0:00:27.3]} 45. Ke2 {[%clk
0:00:20.1]} 45... Nc3+ {[%clk 0:00:28.3]} 46. Kd3 {[%clk 0:00:20.7]} 46... Nd1
{[%clk 0:00:29.5]} 47. Kd2 {[%clk 0:00:21]} 47... Nb2 {[%clk 0:00:29.6]} 48.
Nd3+ {[%clk 0:00:20.7]} 48... Nxd3 {[%clk 0:00:28]} 49. Kxd3 {[%clk 0:00:22.6]}
49... h5 {[%clk 0:00:29]} 50. f4+ {[%clk 0:00:23.9]} 50... Ke6 {[%clk
0:00:29.7]} 51. Kd4 {[%clk 0:00:25.3]} 51... Kd6 {[%clk 0:00:30.8]} 52. e5+
{[%clk 0:00:26.5]} 52... Ke6 {[%clk 0:00:32.7]} 53. Ke4 {[%clk 0:00:28.1]} 53...
Kf7 {[%clk 0:00:34]} 54. f5 {[%clk 0:00:29.3]} 54... Ke7 {[%clk 0:00:35.9]} 1-0

[Event "*** Titled Tuesday Blitz"]
[Site "Chess.com"]
[Date "2018.08.07"]
[Round "1"]
[White "Chakraborty-ARZ"]
[Black "Perecke"]
[Result "1/2-1/2"]
[WhiteElo "2424"]
[BlackElo "1910"]
[TimeControl "180+2"]
[EndTime "13:09:15 PDT"]
[Termination "Game drawn by repetition"]

1. d4 {[%clk 0:02:58]} 1... d5 {[%clk 0:03:00.4]} 2. Bf4 {[%clk 0:02:56.7]} 2...
c5 {[%clk 0:02:59.7]} 3. c3 {[%clk 0:02:56.8]} 3... Nc6 {[%clk 0:02:57.8]} 4. e3
{[%clk 0:02:57.2]} 4... Qb6 {[%clk 0:02:57.7]} 5. Qb3 {[%clk 0:02:56.9]} 5... c4
{[%clk 0:02:57.2]} 6. Qc2 {[%clk 0:02:57.7]} 6... Nf6 {[%clk 0:02:57.4]} 7. Nd2
{[%clk 0:02:57.4]} 7... Bg4 {[%clk 0:02:47.4]} 8. e4 {[%clk 0:02:53.4]} 8... e6
{[%clk 0:02:38.3]} 9. e5 {[%clk 0:02:45.8]} 9... Bf5 {[%clk 0:02:35.3]} 10. Qc1
{[%clk 0:02:42.6]} 10... Ne4 {[%clk 0:02:34.4]} 11. Ngf3 {[%clk 0:02:41.9]}
11... Be7 {[%clk 0:02:29.5]} 12. Be2 {[%clk 0:02:42.7]} 12... O-O {[%clk
0:02:26.2]} 13. O-O {[%clk 0:02:43.2]} 13... h6 {[%clk 0:02:27.4]} 14. Nxe4
{[%clk 0:02:43.4]} 14... Bxe4 {[%clk 0:02:26.4]} 15. Nd2 {[%clk 0:02:43.8]}
15... Bh7 {[%clk 0:02:26.1]} 16. Be3 {[%clk 0:02:41.3]} 16... f6 {[%clk
0:02:15.3]} 17. exf6 {[%clk 0:02:32.5]} 17... Bxf6 {[%clk 0:02:15.8]} 18. Nf3
{[%clk 0:02:32.2]} 18... Qc7 {[%clk 0:02:14.6]} 19. Bf4 {[%clk 0:02:32]} 19...
e5 {[%clk 0:02:08.2]} 20. dxe5 {[%clk 0:02:33]} 20... Bxe5 {[%clk 0:01:59.3]}
21. Nxe5 {[%clk 0:02:33]} 21... Nxe5 {[%clk 0:02:01.2]} 22. Bg3 {[%clk
0:01:59.3]} 22... Rae8 {[%clk 0:01:57.3]} 23. Rd1 {[%clk 0:01:54.6]} 23... Qc6
{[%clk 0:01:52]} 24. Bh5 {[%clk 0:01:32.7]} 24... Re7 {[%clk 0:01:16.2]} 25.
Bxe5 {[%clk 0:01:28.1]} 25... Rxe5 {[%clk 0:01:15.9]} 26. Bf3 {[%clk 0:01:29.7]}
26... Be4 {[%clk 0:01:15.3]} 27. Bxe4 {[%clk 0:01:28.9]} 27... Rxe4 {[%clk
0:01:17.2]} 28. Qd2 {[%clk 0:01:26.4]} 28... Qc5 {[%clk 0:01:08.7]} 29. Kf1
{[%clk 0:01:07]} 29... Ref4 {[%clk 0:01:02.5]} 30. f3 {[%clk 0:01:02.2]} 30...
Kh8 {[%clk 0:00:56.1]} 31. Qxd5 {[%clk 0:00:49.9]} 31... Qb6 {[%clk 0:00:54.2]}
32. Rd2 {[%clk 0:00:37.8]} 32... R8f5 {[%clk 0:00:49.5]} 33. Qd8+ {[%clk
0:00:37]} 33... Rf8 {[%clk 0:00:49.5]} 34. Qxb6 {[%clk 0:00:37.5]} 34... axb6
{[%clk 0:00:50.6]} 35. Rad1 {[%clk 0:00:33.4]} 35... b5 {[%clk 0:00:50.6]} 36.
Rd7 {[%clk 0:00:30]} 36... b6 {[%clk 0:00:40.2]} 37. Rb7 {[%clk 0:00:22.1]}
37... R4f6 {[%clk 0:00:38.1]} 38. Rdd7 {[%clk 0:00:22.5]} 38... Rg6 {[%clk
0:00:38.4]} 39. Kf2 {[%clk 0:00:20.5]} 39... b4 {[%clk 0:00:38.1]} 40. cxb4
{[%clk 0:00:20.6]} 40... Ra8 {[%clk 0:00:38.5]} 41. a3 {[%clk 0:00:21.4]} 41...
c3 {[%clk 0:00:39.3]} 42. bxc3 {[%clk 0:00:22.1]} 42... Rxa3 {[%clk 0:00:40.2]}
43. g4 {[%clk 0:00:20.7]} 43... Rxc3 {[%clk 0:00:40.9]} 44. h4 {[%clk
0:00:21.1]} 44... Rb3 {[%clk 0:00:35.5]} 45. h5 {[%clk 0:00:21.2]} 45... Rf6
{[%clk 0:00:36.3]} 46. Rxg7 {[%clk 0:00:20.3]} 46... Rfxf3+ {[%clk 0:00:36.4]}
47. Ke2 {[%clk 0:00:20.4]} 47... Rfe3+ {[%clk 0:00:36.7]} 48. Kd2 {[%clk
0:00:21.9]} 48... Red3+ {[%clk 0:00:37.9]} 49. Kc2 {[%clk 0:00:23.3]} 49...
Rdc3+ {[%clk 0:00:39]} 50. Kd2 {[%clk 0:00:24.8]} 50... Rd3+ {[%clk 0:00:40.3]}
51. Ke2 {[%clk 0:00:26.4]} 51... Re3+ {[%clk 0:00:41.5]} 52. Kf2 {[%clk
0:00:28]} 52... Rf3+ {[%clk 0:00:42.8]} 53. Kg2 {[%clk 0:00:29.6]} 53... Rg3+
{[%clk 0:00:42.9]} 54. Kh2 {[%clk 0:00:30.7]} 54... Rh3+ {[%clk 0:00:44]} 55.
Kg2 {[%clk 0:00:31.5]} 55... Rhg3+ {[%clk 0:00:45.4]} 56. Kf2 {[%clk 0:00:32.1]}
56... Rgf3+ {[%clk 0:00:46.7]} 57. Ke1 {[%clk 0:00:33.5]} 57... Rfe3+ {[%clk
0:00:47.5]} 58. Kd2 {[%clk 0:00:34.6]} 58... Red3+ {[%clk 0:00:48.5]} 59. Kc2
{[%clk 0:00:36.1]} 59... Rdc3+ {[%clk 0:00:49.7]} 60. Kd2 {[%clk 0:00:37.6]}
60... Rd3+ {[%clk 0:00:50.8]} 61. Ke2 {[%clk 0:00:39.1]} 61... Re3+ {[%clk
0:00:52.1]} 62. Kf2 {[%clk 0:00:40.6]} 62... Rf3+ {[%clk 0:00:53.3]} 63. Kg2
{[%clk 0:00:42.2]} 63... Rg3+ {[%clk 0:00:54.4]} 64. Kh2 {[%clk 0:00:43.7]}
64... Rh3+ {[%clk 0:00:55.7]} 65. Kg2 {[%clk 0:00:45.1]} 65... Rhg3+ {[%clk
0:00:57.2]} 66. Kh1 {[%clk 0:00:46.4]} 66... Rh3+ {[%clk 0:00:58.3]} 67. Kg1
{[%clk 0:00:47.8]} 67... Rhg3+ {[%clk 0:00:59.5]} 68. Kf2 {[%clk 0:00:47.9]}
68... Rgf3+ {[%clk 0:01:00.6]} 1/2-1/2